Cogmind - Beta 14 @@@ ROGUE MODE // 2025.01.02 @ 10:01:29 Player: TerrahLol Result: Destroyed by QK-8VH(R) with Subdweller Laser Performance ------------- Evolutions (0) 0 Regions Visited (3) 600 Robots Destroyed (40) 200 Value Destroyed (950) 950 Prototype IDs (2) 40 Alien Tech Used (0) 0 Bonus (-233) -233 TOTAL SCORE: 1557 Bonus ------- Friendly Fire -233 Cogmind --------- Core Integrity 0/250 Matter 271/300 Energy 315/315 System Corruption 0% Temperature Cool (14) Movement Walking (190) Ox1 Location -10/Subcaves Parts ------- > --- POWER (1) -------- Neutrino Core > --- PROPULSION (2) --- Aluminum Leg Aluminum Leg > --- UTILITY (2) ------ Signal Interpreter Hacking Suite > --- WEAPON (2) ------- Beamcaster Battle Cannon > --- INVENTORY (5) ---- Ion Engine Ion Engine Aluminum Leg Aluminum Leg Battle Rifle Peak State ------------ > --- POWER ------------ Neutrino Core > --- PROPULSION ------- Aluminum Leg Aluminum Leg > --- UTILITY ---------- Signal Interpreter Hacking Suite > --- WEAPON ----------- Particle Gun Beamcaster > --- INVENTORY -------- Ion Engine Ion Engine Aluminum Leg Aluminum Leg Small Storage Unit [Rating: 19] Favorites ----------- Power Ion Engine Engine Ion Engine Power Core Neutrino Core Propulsion Aluminum Leg Treads Light Treads Leg Aluminum Leg Utility Signal Interpreter Device Improved Heat Sink Storage Small Storage Unit Processor Signal Interpreter Hackware Hacking Suite Weapon Beam Cannon Energy Gun Particle Gun Energy Cannon Beam Cannon Ballistic Gun Assault Rifle Ballistic Cannon Battle Cannon Launcher Rocket Launcher Build | -11 -10 -10 -10 ------- Run | Yrd Mat Min Sub Slots Evolved . | . . . . Power . | . . . . Propulsion . | . . . . Utility . | . . . . Weapon . | . . . . Parts Attached 34 | 8 16 3 7 Power 7 | 1 4 . 2 Engine 6 | 1 4 . 1 Core 1 | . . . 1 Reactor . | . . . . Propulsion 9 | 4 3 . 2 Treads 2 | 2 . . . Leg 7 | 2 3 . 2 Wheel . | . . . . Hover . | . . . . Flight . | . . . . Utility 7 | 1 6 . . Device 3 | . 3 . . Storage 2 | 1 1 . . Processor 1 | . 1 . . Hackware 1 | . 1 . . Protection . | . . . . Artifact . | . . . . Weapon 11 | 2 3 3 3 Energy Gun 4 | 1 . 1 2 Energy Cannon 2 | . 1 1 . Ballistic Gun 3 | 1 2 . . Ballistic Cannon 1 | . . . 1 Launcher 1 | . . 1 . Special Weapon . | . . . . Impact Weapon . | . . . . Slashing Weapon . | . . . . Piercing Weapon . | . . . . Special Melee Weapon . | . . . . Unidentified Prototypes . | . . . . Parts Lost 4 | . 2 1 1 Power 2 | . 2 . . Propulsion . | . . . . Utility . | . . . . Weapon 2 | . . 1 1 Highest Loss Streak 1 | . 1 1 1 To Critical Strikes . | . . . . Average Slot Usage (%) 99 | . 98 99 100 Engine 11 | . 13 14 7 Core 1 | . . . 7 Leg 28 | . 28 28 28 Device 3 | . 8 . . Storage 3 | . 8 . . Processor 10 | . 5 14 14 Hackware 9 | . 4 14 14 Energy Gun 6 | . 1 4 18 Energy Cannon 9 | . 10 14 3 Ballistic Gun 7 | . 15 2 . Launcher 2 | . . 6 3 Peak Build Rating 19 | 6 10 10 19 Average Rating 10 | 5 8 9 15 On Entrance 6 | . 6 9 10 Naked Turns . | . . . . Heaviest Build 31 | 11 31 12 22 Greatest Support 40 | 40 20 20 20 Greatest Overweight (x) 1 | . 1 . 1 Average Overweight (x) . | . . . . Largest Inventory Capacity 15 | 8 15 5 5 Average Capacity 6 | 7 8 5 5 Most Carried 12 | 5 12 5 5 Average Carried 5 | 3 6 4 4 Final Capacity 8 | 8 5 5 5 Final Carried 5 | 5 5 5 5 Class Distribution -------------------- 76% | Scavenger-Mutant 23% | Mutant Dominant Class ---------------- Scavenger-Mutant | -10/Materials Scavenger-Mutant | -10/Mines Scavenger-Mutant | -10/Subcaves Resources | -11 -10 -10 -10 ----------- Run | Yrd Mat Min Sub Matter Collected 852 | 282 277 88 205 Remotely . | . . . . Salvage Created 1496 | 63 852 346 235 Parts 92 | 4 49 21 18 Haulers Intercepted 2 | . 2 . . Recyclers Shooed 1 | . 1 . . Parts Field Recycled . | . . . . Retrieved Matter . | . . . . Parts Self-Destructed 3 | . . . 3 Prevented . | . . . . Kills | -11 -10 -10 -10 ------- Run | Yrd Mat Min Sub Combat Hostiles Destroyed 25 | . 11 7 7 Guns 12 | . 8 3 1 Cannons 8 | . 3 4 1 AOE 5 | . . . 5 Classes Destroyed 11 | 1 5 2 3 Worker 2 | . . 2 . Tunneler 1 | . 1 . . Hauler 2 | . 2 . . Recycler 5 | 1 2 2 . Operator 1 | . 1 . . Watcher 3 | . 3 . . Swarmer 5 | . . 5 . Grunt 14 | . 11 2 1 Sentry 1 | . . . 1 Subdweller 5 | . . . 5 Guerrilla 1 | . . . 1 Best Kill Streak 6 | 1 6 5 4 Combat Bots Only 5 | . 2 5 4 Max Kills in Single Turn 3 | 1 1 1 3 Gunslinging . | . . . . Exploded 2 | . . . 2 Melee . | . . . . Uniques/NPCs Destroyed . | . . . . Combat | -11 -10 -10 -10 -------- Run | Yrd Mat Min Sub Hostile Shots Fired 138 | . 64 42 32 Missed 42 | . 21 11 10 Damage Taken 1306 | . 540 295 471 Core 263 | . 82 55 126 Absorbed by Shields . | . . . . Regen/Repaired (Parts) 21 | . 21 . . Core Remaining (%) 100 | 100 . . . Volleys Fired 116 | 2 58 36 20 Largest 2 | 2 2 2 2 Hottest 140 | 70 80 125 140 Shots Fired 228 | 4 116 68 40 Gun 135 | 4 90 32 9 Cannon 79 | . 26 36 17 Launcher 14 | . . . 14 Special . | . . . . Kinetic 89 | 2 63 21 3 Thermal 125 | 2 53 47 23 Explosive 14 | . . . 14 Electromagnetic . | . . . . Robot Hit Streak 13 | 3 9 5 13 Robot Miss Streak 4 | . 4 3 1 Penetration Max . | . . . . Secondary Targets 1 | . 1 . . Max Gunslinging Chain 1 | . 1 . . Shots Hit Robots 122 | 3 70 32 17 Core Hits 64 | 2 33 13 16 Critical Kills . | . . . . Critical Parts Destroyed . | . . . . Critical Strikes 3 | . 2 . 1 Burn 3 | . 2 . 1 Melee Attacks . | . . . . Impact . | . . . . Slashing . | . . . . Piercing . | . . . . Sneak Attacks . | . . . . Combat Hostiles . | . . . . Follow-up Attacks . | . . . . Damage Inflicted 2281 | 35 868 512 866 Guns 999 | 35 606 213 145 Cannons 657 | . 262 299 96 Explosions 625 | . . . 625 Melee . | . . . . Ramming . | . . . . Kinetic 544 | 10 365 146 23 Thermal 1112 | 25 503 366 218 Explosive 625 | . . . 625 Electromagnetic . | . . . . Impact . | . . . . Slashing . | . . . . Piercing . | . . . . Highest Corruption . | . . . . Average Corruption . | . . . . Corruption Purged . | . . . . Corruption Blocked . | . . . . Overload Shots . | . . . . Overflow Damage 8 | . . 8 . Projectiles 8 | . . 8 . Explosions . | . . . . Melee . | . . . . Knockbacks . | . . . . Impact . | . . . . Kinetic . | . . . . Secondary . | . . . . Self-Inflicted Damage 30 | . . . 30 Shots 2 | . . . 2 Rammed . | . . . . Targets Rammed . | . . . . Kicked . | . . . . Crushed . | . . . . Highest Temperature 335 | 60 138 335 66 Average Temperature 85 | 30 46 116 25 Received Heat Transfer 516 | . 318 63 135 Effects 1 | . . 1 . Energy Bleed 1 | . . 1 . Siege Activations . | . . . . Robots Corrupted . | . . . . Combat Hostiles . | . . . . Parts Fried . | . . . . Impact Corruptions . | . . . . Robots Melted . | . . . . Combat Hostiles . | . . . . Parts Melted 1 | . 1 . . Heat Transferred 2738 | 74 1406 777 481 Parts Sabotaged . | . . . . Parts Stolen . | . . . . Parts Stripped . | . . . . Power Chain Reactions . | . . . . Alert | -11 -10 -10 -10 ------- Run | Yrd Mat Min Sub Peak Influence 249 | 5 238 249 . Initial 9 | . 3 9 . Average 62 | 1 68 76 . Maximum Alert Level 1 | . 1 1 . Low Security (%) 92 | 100 94 87 . Level 1 7 | . 5 12 . Level 2 . | . . . . Level 3 . | . . . . Level 4 . | . . . . Level 5 . | . . . . High Security . | . . . . Max Security . | . . . . Squads Dispatched 6 | . 6 . . Investigation 5 | . 5 . . Extermination . | . . . . Reinforcement 1 | . 1 . . Assault . | . . . . Garrison . | . . . . Intercept . | . . . . Searches Triggered . | . . . . Construction Impeded . | . . . . Haulers Reinforced . | . . . . Active Scanning Responses . | . . . . Cargo Convoy Interrupts . | . . . . Stealth | -11 -10 -10 -10 --------- Run | Yrd Mat Min Sub Distress Signals . | . . . . Communications Jammed . | . . . . Distress Signals . | . . . . Times Spotted 40 | . 18 10 12 Peak Tracking Total 6 | . 4 4 6 Tactical Retreats 5 | . . 5 . Traps | -11 -10 -10 -10 ------- Run | Yrd Mat Min Sub Traps Triggered 2 | . 2 . . Indirectly . | . . . . Trap Hack Attempts . | . . . . Triggered . | . . . . Disarmed . | . . . . Reprogrammed . | . . . . Reused . | . . . . Traps Extracted . | . . . . Installed . | . . . . Triggered . | . . . . Machines | -11 -10 -10 -10 ---------- Run | Yrd Mat Min Sub Machines Disabled 2 | . 1 1 . Max in Single Turn 1 | . 1 1 . Machines Repaired . | . . . . Machines Dismantled . | . . . . Machines Sabotaged . | . . . . Overloaded Fab Kills . | . . . . Hacking | -11 -10 -10 -10 --------- Run | Yrd Mat Min Sub Machines Accessed 9 | . 7 1 1 Terminals 6 | . 5 1 . Fabricators . | . . . . Repair Stations 1 | . 1 . . Recycling Units 1 | . 1 . . Scanalyzers . | . . . . Garrison Access . | . . . . Total Hacks 28 | . 22 2 4 Successful 17 | . 11 2 4 Failed 11 | . 11 . . Catastrophic 1 | . 1 . . Database Lockouts . | . . . . Manual 1 | . . . 1 Terminals 20 | . 18 2 . Fabricators . | . . . . Repair Stations 2 | . 2 . . Recycling Units 2 | . 2 . . Scanalyzers . | . . . . Garrison Access . | . . . . Terminal Hacks 13 | . 7 2 4 Record 5 | . 1 . 4 Robot Analysis 2 | . 2 . . Prototype ID Bank 1 | . 1 . . Unreport Threat 1 | . 1 . . Security Status 1 | . 1 . . Investigation Status 1 | . . 1 . Recall Investigation 1 | . . 1 . Zone Layout 1 | . 1 . . Fabricator Hacks . | . . . . Repair Station Hacks 2 | . 2 . . Scan Component 1 | . 1 . . Repair 1 | . 1 . . Recycling Unit Hacks 2 | . 2 . . Process 1 | . 1 . . Report Inventory 1 | . 1 . . Scanalyzer . | . . . . Garrison Access Hacks . | . . . . Unauthorized Hacks . | . . . . Terminals . | . . . . Fabricators . | . . . . Repair Stations . | . . . . Recycling Units . | . . . . Scanalyzers . | . . . . Garrison Access . | . . . . Data Cores Recovered . | . . . . Used . | . . . . Hacking Detections 7 | . 7 . . Full Trace Events 4 | . 4 . . Feedback Events . | . . . . Feedback Blocked . | . . . . Robot Schematics Acquired . | . . . . Robots Built . | . . . . Authchips . | . . . . Time . | . . . . Total Robot Build Rating . | . . . . Part Schematics Acquired . | . . . . Parts Built . | . . . . Authchips . | . . . . Time . | . . . . Total Part Build Rating . | . . . . Parts Repaired 1 | . 1 . . Time 26 | . 26 . . Parts Recycled . | . . . . Recycled Matter 205 | . 205 . . Retrieved Matter . | . . . . Retrieved Components . | . . . . Parts Scanalyzed . | . . . . Part Schematics Acquired . | . . . . Parts Damaged . | . . . . Bothacking | -11 -10 -10 -10 ------------ Run | Yrd Mat Min Sub Used RIF Installer . | . . . . Robots Hacked . | . . . . Non-combat . | . . . . Combat . | . . . . Robot Hacks Applied . | . . . . Relay Couplers Released . | . . . . Fabnet Peak Effective % . | . . . . Robots Rewired . | . . . . Allies Hacked . | . . . . Hacks Repelled . | . . . . Allies | -11 -10 -10 -10 -------- Run | Yrd Mat Min Sub Total Allies . | . . . . Largest Group . | . . . . Highest-Rated Group . | . . . . Highest-Rated Ally . | . . . . Total Orders . | . . . . Ally Attacks . | . . . . Total Damage . | . . . . Kills . | . . . . Allies Corrupted . | . . . . Allies Melted . | . . . . Intel | -11 -10 -10 -10 ------- Run | Yrd Mat Min Sub Robot Analysis Total 2 | . 2 . . Derelict Logs Recovered 4 | . . 3 1 Drone Launches . | . . . . Drone Recoveries . | . . . . Exploration | -11 -10 -10 -10 ------------- Run | Yrd Mat Min Sub Turns Passed 3632 | 357 1408 1050 817 Spaces Moved 2439 | 261 904 779 495 Core 7 | 7 . . . Treads 39 | 39 . . . Legs 2393 | 215 904 779 495 Wheels . | . . . . Hover . | . . . . Flight . | . . . . Fastest Speed 50 | 50 120 120 120 Average Speed 129 | 124 129 120 149 Slowest Speed 190 | 160 190 120 190 Overloaded Moves . | . . . . Propulsion Burnouts . | . . . . Robots Hopped . | . . . . Cave-ins Triggered . | . . . . Exploration Rate (%) 56 | 13 89 99 25 Regions Visited 3 Branch Regions 2 Pre-discovered Areas 2 | . . 1 1 Known Exits Taken 2 | . 1 1 . Unknown Exits Taken 1 | 1 . . . Scrap Searched 3 | . . 2 1 Spaces Dug . | . . . . Terrain Destroyed 92 | . . . 92 Melee . | . . . . Projectile . | . . . . AOE 92 | . . . 92 Terrain Rammed . | . . . . Walls Destroyed . | . . . . Machines Disabled . | . . . . Actions | -11 -10 -10 -10 --------- Run | Yrd Mat Min Sub Total 2691 | 290 1041 827 533 Wait 31 | 5 18 4 4 Move 2436 | 260 903 778 495 Hop . | . . . . Pick Up 41 | 13 22 3 3 Fast Attach 4 | . 2 . 2 Attach 12 | 6 4 1 1 Detach . | . . . . Swap 18 | 2 10 2 4 Drop 33 | 2 24 3 4 Fire 116 | 2 58 36 20 Melee . | . . . . Ram . | . . . . Kick . | . . . . Crush . | . . . . Escape Stasis . | . . . . Rewire . | . . . . Trap . | . . . . Miscellaneous . | . . . . Route ------- -11/Scrapyard -10/Materials (discovered 5 exits: *Mat x3 / *Min x2) -10/Mines (discovered 3 exits: *Mat x2 / *Sub) -10/Subcaves (discovered 1 exit: *Mat) History --------- Turn | Location | Event 5 | -11/Scrapyard | Discovered new exit (range 15) 358 | -11/Scrapyard | Entered Materials 359 | -10/Materials | Build established: Mutant 549 | -10/Materials | Discovered new exit (range 12) 738 | -10/Materials | Repaired Ion Engine 784 | -10/Materials | Discovered new exit (range 10) 937 | -10/Materials | Build established: Scavenger-Mutant 1041 | -10/Materials | Discovered new exit (range 11) 1180 | -10/Materials | Identified exit to Materials 1355 | -10/Materials | Discovered new exit (range 8) 1363 | -10/Materials | Identified exit to Mines 1726 | -10/Materials | Discovered exit to Mines (range 16) 1766 | -10/Materials | Entered Mines 1855 | -10/Mines | Discovered exit to Materials (range 5) 2011 | -10/Mines | Core integrity fell below 50% 2089 | -10/Mines | Learned location of Zion (-7) 2225 | -10/Mines | Received a Rocket Launcher from a helpful Derelict 2375 | -10/Mines | Learned Materials stockpile data 2806 | -10/Mines | Discovered new exit (range 8) 2815 | -10/Mines | Identified exit to Subcaves 2816 | -10/Mines | Entered Subcaves 2878 | -10/Subcaves | A swath of the cavern ceiling suddenly collapsed 2981 | -10/Subcaves | Ambushed by swarm of Subdwellers 3036 | -10/Subcaves | Lost 4 allies 3049 | -10/Subcaves | Disturbed a concealed Subdweller 3134 | -10/Subcaves | Visited Clippyterm 3137 | -10/Subcaves | Learned Research machine intel 3525 | -10/Subcaves | Discovered new exit (range 13) 3581 | -10/Subcaves | Identified exit to Materials 3626 | -10/Subcaves | Core integrity fell below 20% 3633 | -10/Subcaves | Destroyed by QK-8VH(R) with Subdweller Laser Last Messages --------------- 03233_ Subatomizers dissect the Disposable Heat Sink, destroying it. 03248_ Subatomizers dissect the Disposable Heat Sink. 03261_ Acquired derelict log, extracted data. World map confirmed: -7/Zion. 03303_ Subatomizers dissect the Sub. Shrapnel Launcher, destroying it. 03312_ Acquired 34 matter. 03315_ Subatomizers dissect the Disposable Heat Sink. 03525_ EXIT=FOUND 03531_ Searching scrap... 03531_ Found Battle Cannon. 03531_ Found Battle Rifle. 03531_ Found 59 Matter. 03532_ Acquired 59 matter. 03536_ Dropped Particle Gun. 03538_ Acquired Battle Cannon. 03549_ Dropped Sml. Storage Unit. 03563_ Acquired Battle Rifle. 03581_ EXIT=IDENTIFIED: MATERIALS 03604_ Acquired 7 matter. 03626_ 2G-FU2(R) suffers critical hit (Burn). Map ----- +----------------------------------------------------+ | ????????????????????????????????# ##???# | | ??????????????????????????????### #????## | | ????????????????????????????### # #####?# | | ????????????????????????????# #?? | | ???????????????????????????## [ "" | | ???????????????????????????# # | | ???????????????????????????### ###"" ## | | ????????????????????????????# ##" ####### | | ????????????????????????????## ### #?????? | | ????????????????????????????# #?# " ?#???? | | ???????????????????????????## !#### ##??? | | ??????????????????????????## # # #??? | | ?????????????????????????## "" #?? | | ???????????????????????### # "" #?? | | ???????????????????????# ## "" #??? | | ???????????????????????## < ##??###???? | | ????????????????########## #### ##???? | | ????????????????# # # "#???? | | ?????????????????# "#??? | | ?????????????????# "#??? | | ???????????????### #### # ## ## # #??? | | ???????????????# %%##########?# ##??#??? | | ???????????????## ##?????????###??????? | | ????????????????# #??????????????????? | | ???????????????## #??????????????????? | | ???????????????# @## #????????????????? | | ???????????????# #? ????????????? | | ??????????????# #??# ## ?????????? | | ???????????? #???####??? ??????????? | | ???????????# R % ??????????????????????? | | ???????????# #< ??????????????????????? | | ??????????< ### ??????????????????????? | | ?????????# "???# ??????????????????????? | | ???????? ????## ?????????????????????? | | ???????<